lending/lending_fUSD_20250808
["ID","MTS","AMOUNT","RATE_DAILY","PERIOD"]
[378048324,1754692245904,-150.155,0.00026401,2]
[378048325,1754692245915,-151.0,0.00026401,2]
[378048326,1754692245925,-6188.20821749,0.000265,2]
[378048327,1754692245935,-776.3,0.00026532,2]
[378048328,1754692245947,-400.0,0.00026571,2]
[378048329,1754692245956,-3527.21,0.00026571,2]
[378048330,1754692245967,-400.0,0.00026571,2]
[378048331,1754692245977,-400.0,0.00026571,2]
[378048332,1754692245987,-323.96679479,0.00026571,2]
[378048333,1754692246002,-155.61320521,0.00026571,2]
[378048334,1754692246012,-342.05634426,0.00026571,2]
[378048335,1754692246022,-3171.26,0.00026571,2]
[378048336,1754692246032,-400.0,0.00026571,2]
[378048337,1754692246042,-400.0,0.00026571,2]
[378048338,1754692246052,-176.54,0.00026618,2]
[378048339,1754692246062,-154.89,0.00026665,2]
[378048340,1754692246072,-168.8,0.00026676,2]
[378048341,1754692246082,-178.39782393,0.00026806,2]
[378048343,1754692246394,-1888.0,0.00025427,3]
[378048344,1754692246404,-1888.0,0.0002621,3]
[378048345,1754692246414,-597.90217607,0.00026806,2]
[378048346,1754692246425,-30699.0861912,0.00026825,3]
[378048347,1754692246434,-223.57,0.00026844,2]
[378048348,1754692246446,-400.0,0.00026845,2]
[378048349,1754692246455,-3527.21,0.00026845,2]
[378048350,1754692246465,-400.0,0.00026845,2]
[378048351,1754692246474,-400.0,0.00026845,2]
[378048352,1754692246483,-479.58,0.00026845,2]
[378048353,1754692246493,-3171.26,0.00026845,2]
[378048354,1754692246502,-400.0,0.00026845,2]
[378048355,1754692246512,-400.0,0.00026845,2]
[378048356,1754692246521,-600.0,0.00026884,2]
[378048357,1754692246531,-167.24928572,0.00026884,2]
[378048358,1754692246541,-1906.9565374,0.000269,2]
[378048359,1754692246550,-1906.95653735,0.000269,2]
[378048360,1754692246559,-800.0,0.000269,9]
[378048361,1754692246569,-1906.95653735,0.000269,2]
[378048362,1754692246578,-1262.50750097,0.000269,2]
[378048363,1754692246610,-644.44903638,0.000269,2]
[378048364,1754692246623,-1906.95653735,0.00026926,2]
[378048365,1754692246632,-151.0,0.00027008,7]
[378048366,1754692246641,-151.0,0.00027008,7]
[378048367,1754692246651,-1245.17137588,0.00027009,3]
[378048368,1754692246663,-846.58351749,0.00027009,3]
[378048377,1754692397592,169.29,0.00013699,2]
[378048385,1754693432411,-474.58,0.000191,2]
[378048386,1754693432420,-164.16,0.00019678,2]
[378048387,1754693432430,-63.94973297,0.00020187,2]
[378048388,1754693432441,-105.34026703,0.00020187,2]
[378048389,1754693432450,-300.0,0.0002101,2]
[378048390,1754693432459,-164.16,0.00021408,2]
[378048391,1754693432468,-164.16,0.00023139,2]
[378048392,1754693432478,-540.6,0.00023814,2]
[378048393,1754693432487,-1425.12251095,0.00024,2]
[378048394,1754693432512,-2074.87749355,0.00024,2]
[378048395,1754693432521,-638.0386,0.00024794,2]
[378048396,1754693432531,-164.16,0.00024869,2]
[378048397,1754693432540,-267.46074303,0.00024877,2]
[378048398,1754693432549,-296.55436341,0.00024891,2]
[378048399,1754693432616,-903.44563659,0.00024891,2]
[378048400,1754693432626,-300.0,0.00024892,2]
[378048401,1754693432635,-614.57,0.00024893,2]
[378048402,1754693432644,-429.0,0.00024932,7]
[378048403,1754693432654,-203.0,0.00024932,7]
[378048404,1754693432663,-1000.0,0.00024969,2]
[378048405,1754693432672,-429.0,0.00025,7]
[378048406,1754693432682,-203.0,0.00025,7]
[378048407,1754693432691,-666.0,0.00025064,3]
[378048408,1754693432700,-206.47436341,0.0002509,2]
[378048448,1754693438115,-1888.0,0.00020178,3]
[378048449,1754693438124,-1823.51764794,0.00022418,3]
[378048450,1754693438399,-747.1988562,0.00020678,3]
[378048479,1754693440295,-1140.8011438,0.00020678,3]
[378048480,1754693440304,-1952.48235206,0.00022418,3]
[378048481,1754693440314,-3776.0,0.00022918,3]
[378048482,1754693440323,-1596.15,0.00024876,2]
[378048483,1754693440332,-393.52563659,0.0002509,2]
[378048484,1754693440341,-401.19111454,0.0002509,2]
[378048485,1754693440351,-160.0,0.0002509,2]
[378048486,1754693440360,-333.06905383,0.0002509,2]
[378048487,1754693440369,-5000.0,0.00025105,2]
[378048488,1754693440379,-614.57,0.00025167,2]
[378048489,1754693440388,-332.34182663,0.00025441,2]
[378048490,1754693440402,-282.22817337,0.00025441,2]
[378048491,1754693440411,-230.0,0.000256,2]
[378048492,1754693440421,-600.0,0.00025638,2]
[378048493,1754693440431,-614.57,0.00025715,2]
[378048494,1754693440440,-457.64618948,0.00025885,2]
[378048495,1754693440450,-429.0,0.0002589,7]
[378048496,1754693440459,-203.0,0.0002589,7]
[378048497,1754693440469,-549.162,0.00025894,11]
[378048498,1754693440484,-3364.0,0.00025903,2]
[378048499,1754693440494,-157.036,0.00025903,2]
[378048500,1754693440503,-909.964,0.00025903,2]
[378048501,1754693440512,-956.0,0.00025903,2]
[378048502,1754693440521,-407.58955912,0.00025903,2]
[378048503,1754693440533,-861.41044088,0.00025903,2]
[378048504,1754693440542,-598.0,0.00025903,2]
[378048505,1754693440552,-2115.213,0.00025903,2]
[378048506,1754693440561,-105.97655908,0.00025903,2]
[378048507,1754693442925,152.36,0.00013699,2]
[378048513,1754693446333,-152.36,0.00020187,2]
[378048514,1754693446342,-1888.0,0.00021178,3]
[378048515,1754693446351,-3776.0,0.00023418,3]
[378048516,1754693446361,-459.02344092,0.00025903,2]
[378048517,1754693446370,-1294.0,0.00025903,2]
[378048518,1754693446379,-959.0,0.00025903,2]
[378048519,1754693446389,-6077.0,0.00025903,2]
[378048520,1754693446399,-1587.25699111,0.00025903,2]
[378048521,1754693446410,-1468.70600889,0.00025903,2]
[378048522,1754693446420,-866.0,0.00025903,2]
[378048523,1754693446429,-19283.771,0.00025903,2]
[378048524,1754693446439,-614.57,0.00025989,2]
[378048525,1754693446448,-151.03,0.0002603,2]
[378048526,1754693446457,-238.85839964,0.00026118,2]
[378048527,1754693446466,-150.0,0.00026118,2]
[378048528,1754693446476,-600.0,0.00026186,2]
[378048529,1754693446485,-277.35679052,0.00026246,2]
[378048530,1754693446494,-614.57,0.00026263,2]
[378048531,1754693446503,-416.03518578,0.00026459,2]
[378048532,1754693446515,-160.0,0.00026459,2]
[378048533,1754693446524,-614.57,0.00026537,2]
[378048534,1754693446534,-164.16,0.00026599,2]
[378048535,1754693446544,-514.0,0.00026671,2]
[378048536,1754693446555,-152.36,0.00026676,2]
[378048537,1754693446566,-225.0,0.0002678,2]
[378048538,1754693446576,-614.57,0.00026811,2]
[378048539,1754693446586,-2900.8375714,0.000269,2]
[378048540,1754693446598,-950.73579974,0.000269,11]
[378048541,1754693446609,-1430.21740306,0.000269,2]
[378048542,1754693446619,-400.0,0.00026999,2]
[378048543,1754693446629,-400.0,0.00026999,2]
[378048544,1754693446638,-647.66,0.00026999,2]
[378048545,1754693446648,-2886.26,0.00026999,2]
[378048546,1754693446657,-400.0,0.00026999,2]
[378048547,1754693446666,-419.37941067,0.00026999,2]
[378048548,1754693446676,-400.0,0.00026999,2]
[378048549,1754693446685,-400.0,0.00026999,2]
[378048550,1754693446694,-2114.17,0.00026999,2]
[378048551,1754693446703,-400.0,0.00026999,2]
[378048552,1754693446712,-560.6,0.00026999,2]
[378048553,1754693446721,-164350.73573797,0.00027,2]
[378048554,1754693446739,-2340.6,0.00027,2]
[378048555,1754693446751,-445.52652619,0.00027,2]
[378048565,1754694548120,152.36,0.00013699,2]
[378048574,1754694632736,-427.12,0.000198,2]
[378048575,1754694632747,-155.8,0.00020377,2]
[378048576,1754694632756,-150.0,0.00020585,2]
[378048577,1754694632765,-150.0,0.0002102,2]
[378048578,1754694632775,-152.36,0.00021404,2]
[378048579,1754694632785,-3743.81,0.00021581,2]
[378048580,1754694632795,-500.0,0.0002178,2]
[378048581,1754694632804,-150.0,0.00021918,2]
[378048582,1754694632813,-155.8,0.00022108,2]
[378048583,1754694632823,-1542.57,0.00022903,2]
[378048584,1754694632832,-267.46074303,0.00023252,2]
[378048585,1754694632841,-600.0,0.000236,2]
[378048586,1754694632850,-155.8,0.00023838,2]
[378048587,1754694632859,-277.35679052,0.00024621,2]
[378048588,1754694632868,-3974.03,0.0002476,2]
[378048589,1754694632877,-1200.0,0.00024822,2]
[378048590,1754694632886,-250.0,0.00024823,2]
[378048591,1754694632895,-300.0,0.00024832,2]
[378048592,1754694632904,-300.0,0.00024832,2]
[378048593,1754694632913,-3784.37795344,0.00024833,2]
[378048626,1754694638510,-1888.0,0.000203,3]
[378048627,1754694638519,-3776.0,0.0002254,3]
[378048628,1754694638529,-863.0,0.0002476,2]
[378048629,1754694638538,-1215.62204656,0.00024833,2]
[378048630,1754694638547,-750.99,0.00024905,2]
[378048631,1754694638557,-187.22,0.00024921,2]
[378048632,1754694638566,-268.0,0.00024932,7]
[378048633,1754694638575,-169.0,0.00024932,7]
[378048634,1754694638584,-439.33,0.00025,8]
[378048635,1754694638594,-169.0,0.00025,7]
[378048636,1754694638603,-268.0,0.00025,7]
[378048637,1754694638612,-613.96,0.00025029,2]
[378048638,1754694638621,-358.27452433,0.00025193,2]
[378048639,1754694638631,-160.0,0.00025193,2]
[378048640,1754694638640,-401.19111454,0.00025193,2]
[378048641,1754694638649,-461.1401734,0.00025193,2]
[378048643,1754694638658,-550.0,0.00025208,2]
[378048645,1754694638667,-11145.38758353,0.00025208,2]
[378048647,1754694638679,-12754.61241647,0.00025208,2]
[378048649,1754694638688,-212.0,0.000254,2]
[378048651,1754694638697,-200.0,0.00025502,2]
[378048653,1754694638710,-825.32921647,0.00025526,2]
[378048655,1754694638719,-194.55,0.00025561,2]
[378048657,1754694638728,-155.8,0.00025568,2]
[378048659,1754694638738,-500.0,0.00025628,2]
[378048661,1754694638747,-1203.36,0.00025668,2]
[378048663,1754694638756,-1000.0,0.00025682,2]
[378048665,1754694638765,-30.34836706,0.00025792,2]
[378048667,1754694638777,-252.97163294,0.00025792,2]
[378048669,1754694638786,-825.32921647,0.00025824,2]
[378048671,1754694638796,-268.0,0.0002589,7]
[378048673,1754694638805,-169.0,0.0002589,7]
[378048675,1754694638813,-281.194,0.00025903,2]
[378048677,1754694638822,-181.909,0.00025903,2]
[378048679,1754694638831,-150.0,0.00025903,2]
[378048681,1754694638841,-250.0,0.00025911,2]
[378048683,1754694638849,-192.891,0.00025911,2]
[378048685,1754694638859,-200.677,0.00025911,2]
[378048687,1754694638869,-250.0,0.00025911,2]
[378048689,1754694638878,-150.0,0.00025911,2]
[378048691,1754694638887,-3364.0,0.00025911,2]
[378048693,1754694638896,-956.0,0.00025911,2]
[378048696,1754694638906,-563.0,0.00025911,2]
[378048699,1754694638915,-2025.0,0.00025911,2]
[378048701,1754694638923,-959.0,0.00025911,2]
[378048703,1754694638932,-596.0,0.00025911,2]
[378048705,1754694638941,-892.0,0.00025911,2]
[378048707,1754694638950,-1171.0,0.00025911,2]
[378048708,1754694638959,-1852.42,0.00025946,2]
[378048709,1754694638968,-1444.21,0.00025954,2]
[378048710,1754694638977,-167.28,0.00025956,2]
[378048711,1754694638986,-163.6,0.00025987,2]
[378048712,1754694638995,-287.61899177,0.0002599,2]
[378048713,1754694639004,-778.2,0.00026141,2]
[378048714,1754694639013,-159.23893309,0.00026189,2]
[378048715,1754694639022,-188.81746806,0.00026246,2]
[378048716,1754694639033,-287.05775388,0.00026246,2]
[378048718,1754694640665,-1513.52550004,0.000208,3]
[378048773,1754694646746,-374.47449996,0.000208,3]
[378048774,1754694646757,-1888.0,0.000213,3]
[378048775,1754694646766,-3776.0,0.0002304,3]
[378048776,1754694646775,-3776.0,0.0002354,3]
[378048777,1754694646785,-349.45399453,0.00026246,2]
[378048778,1754694646794,-797.49,0.00026313,7]
[378048779,1754694646803,-741.58150551,0.00026313,7]
[378048782,1754694646818,-55.90849449,0.00026313,7]
[378048784,1754694646827,-797.49,0.00026313,7]
[378048786,1754694646836,-85.80128904,0.00026313,7]
[378048970,1754695253393,-151.0,0.00019477,2]
[378048971,1754695253417,-151.0,0.00019522,2]
[378048974,1754695508009,49.0,0.00019,2]
[378048975,1754695542656,-63290.29405537,0.00019,2]
[378048981,1754695717601,-639.41074532,0.00018999,2]
[378048982,1754695717629,-31645.14702768,0.00019,2]
[378048983,1754695717655,-2675.49452947,0.00019,2]
[378048984,1754695717682,-25339.94769753,0.00019,2]
[378048985,1754695722522,152.34,0.00013699,2]
[378049128,1754695831747,-454.17,0.00018999,2]
[378049466,1754695839743,-745.83,0.00018999,2]
[378049507,1754695839939,-103.52927867,0.00018999,2]
[378049511,1754695839959,-196.47072133,0.00018999,2]
[378049514,1754695839968,-2256.09330402,0.00019,2]
[378049517,1754695839979,-406.0443649,0.00019,2]
[378049779,1754695842573,-1177.77040851,0.00019,2]
[378049780,1754695842662,-957.9187163,0.00019,2]
[378049781,1754695842751,-10410.75234343,0.00019,2]
[378049782,1754695842763,-613.99437668,0.00019,2]
[378049783,1754695842772,-1337.74726473,0.00019,2]
[378049784,1754695842782,-8750.74396634,0.00019,2]
[378049785,1754695842916,-500.0,0.00019,2]
[378049910,1754695845832,-2339.6,0.00019,2]
[378049930,1754696535563,157.46,0.00017331,2]
[378050030,1754697031788,-151.0,0.00018324,2]
[378050031,1754697031798,-112.263,0.00018626,2]
[378050032,1754697031810,-187.737,0.00018626,2]
[378050033,1754697031819,-191.42817715,0.00018871,2]
[378050034,1754697031829,-532.99206885,0.00018965,2]
[378050035,1754697031925,-2470.73475492,0.00018965,2]
[378050036,1754697031935,-357.0,0.00018971,2]
[378050037,1754697031945,-29.79291426,0.00018972,2]
[378050038,1754697031983,-270.20708574,0.00018972,2]
[378050039,1754697031992,-300.0,0.00018972,2]
[378050040,1754697032002,-1200.0,0.00018972,2]
[378050041,1754697032012,-500.0,0.00018973,2]
[378050042,1754697032022,-500.0,0.00018973,2]
[378050043,1754697032031,-503.29882078,0.00018973,2]
[378050044,1754697032042,-500.0,0.00018973,2]
[378050045,1754697032051,-500.0,0.00018973,2]
[378050046,1754697032060,-563.88166075,0.00018973,2]
[378050047,1754697032069,-500.0,0.00018973,2]
[378050048,1754697032080,-500.0,0.00018973,2]
[378050049,1754697032090,-500.0,0.00018973,2]
[378050050,1754697032099,-500.0,0.00018973,2]
[378050051,1754697032108,-533.96281568,0.00018973,2]
[378050052,1754697032118,-388.93685677,0.00018999,2]
[378050053,1754697032127,-192.95514487,0.00018999,2]
[378050054,1754697032136,-248.41502335,0.00018999,2]
[378050055,1754697032145,-7911.28675692,0.00019,2]
[378050056,1754697032155,-668.87363236,0.00019,2]
[378050057,1754697032164,-77774.56437198,0.00019,2]
[378050058,1754697032176,-731.03756705,0.00019,2]
[378050059,1754697032187,-7278.95633323,0.00019,2]
[378050061,1754697032198,-11192.96165246,0.00019,2]
[378050063,1754697032210,-1730.49367139,0.00019,2]
[378050065,1754697032221,-35425.42356565,0.00019,2]
[378050067,1754697032231,-579.22440736,0.00019,2]
[378050108,1754697037779,-9464.84572514,0.00019,2]
[378050109,1754697038029,-3296.01226809,0.00019,2]
[378050112,1754697038040,-400.59006733,0.00019,2]
[378050149,1754697039771,-4017.6,0.00019,2]
[378050150,1754697039863,-3970.57176984,0.00019,2]
[378050151,1754697039929,-4933.6600297,0.00019,2]
[378050405,1754697042869,-58219.87916389,0.00019,2]
[378050407,1754697042879,-537.81374657,0.00019069,2]
[378050409,1754697042888,-825.32921649,0.00019141,2]
[378050411,1754697042898,-825.32921649,0.0001926,2]
[378050413,1754697042908,-157.46,0.00019265,2]
[378050415,1754697042917,-595.97887998,0.0001933,2]
[378050417,1754697042926,-384.41,0.000199,2]
[378050419,1754697042936,-300.0,0.00020219,2]
[378050421,1754697042946,-300.0,0.00020219,2]
[378050423,1754697042956,-420.0,0.0002068,2]
[378050425,1754697042965,-3003.72682376,0.00020736,2]
[378050427,1754697042975,-1680.0,0.0002078,2]
[378050429,1754697042985,-157.46,0.00021199,2]
[378050431,1754697042994,-150.0,0.000214,2]
[378050433,1754697043003,-152.34,0.00021404,2]
[378050435,1754697043013,-250.0,0.00021918,2]
[378050437,1754697043022,-6685.04,0.00021992,2]
[378050439,1754697043032,-250.0,0.00022321,2]
[378050441,1754697043041,-1165.23,0.00022339,2]
[378050443,1754697043050,-23900.0,0.00022379,2]
[378050445,1754697043060,-862.89,0.00022433,2]
[378050447,1754697043069,-3003.72682376,0.00022506,2]
[378050449,1754697043078,-587.0,0.00022541,2]
[378050451,1754697043088,-200.0,0.0002258,2]
[378050453,1754697043097,-2351.0,0.00022761,2]
[378050455,1754697043106,-9418.77,0.00023057,2]
[378050457,1754697043115,-157.46,0.00023133,2]
[378050459,1754697043125,-5000.0,0.00023152,2]
[378050461,1754697043134,-666.0,0.00023152,3]
[378050463,1754697043144,-1000.0,0.00023206,2]
[378050466,1754697043154,-160.0,0.00023252,2]
[378050467,1754697043163,-401.19111454,0.00023252,2]
[378050470,1754697043172,-267.46074303,0.00023252,2]
[378050471,1754697043182,-196.0,0.0002377,2]
[378050473,1754697043191,-3329.13,0.00023882,2]
[378050476,1754697043203,-5699.64,0.00024022,2]
[378050477,1754697043212,-1537.5699,0.00024067,2]
[378050479,1754697043221,-170.0,0.00024167,7]
[378050482,1754697043231,-150.99,0.00024174,2]
[378050483,1754697043241,-327.81,0.00024174,2]
[378050486,1754697043251,-302.05,0.00024174,2]
[378050487,1754697043259,-9999.99,0.00024174,2]
[378050490,1754697043269,-3003.72682376,0.00024277,2]
[378050491,1754697043279,-151.0,0.00024277,7]
[378050493,1754697043288,-163.6,0.0002455,2]
[378050495,1754697043297,-823.0,0.00024571,2]
[378050497,1754697043306,-160.0,0.00024621,2]
[378050499,1754697043315,-416.03518578,0.00024621,2]
[378050501,1754697043324,-277.35679052,0.00024621,2]
[378050503,1754697043333,-409.72,0.00024657,2]
[378050505,1754697043342,-545.26,0.00024657,2]
[378050507,1754697043351,-400.0,0.00024657,2]
[378050509,1754697043361,-400.0,0.00024657,2]
[378050511,1754697043370,-476.24099755,0.00024657,2]
[378050513,1754697043379,-400.0,0.00024657,2]
[378050515,1754697043388,-400.0,0.00024657,2]
[378050517,1754697043398,-341.30808403,0.00024657,2]
[378050519,1754697043407,-400.0,0.00024657,2]
[378050521,1754697043416,-400.0,0.00024657,2]
[378050523,1754697043425,-421.37,0.00024657,2]
[378050525,1754697043434,-400.0,0.00024657,2]
[378050527,1754697043444,-400.0,0.00024657,2]
[378050529,1754697043453,-161.47,0.00024657,2]
[378050531,1754697043463,-151.0,0.00024657,7]
[378050533,1754697043472,-620.67,0.00024657,2]
[378050535,1754697043481,-151.0,0.00024657,7]
[378050537,1754697043491,-2766.0,0.00024657,2]
[378050539,1754697043500,-151.0,0.00024657,7]
[378050541,1754697043509,-151.0,0.00024657,7]
[378050543,1754697043519,-205.76612,0.00024657,7]
[378050545,1754697043528,-400.0,0.00024657,2]
[378050547,1754697043537,-400.0,0.00024657,2]
[378050549,1754697043546,-400.0,0.00024657,2]
[378050551,1754697043555,-400.0,0.00024657,2]
[378050553,1754697043564,-400.0,0.00024657,2]
[378050555,1754697043573,-400.0,0.00024657,2]
[378050557,1754697043582,-151.0,0.00024657,7]
[378050559,1754697043591,-163.98488117,0.00024657,2]
[378050561,1754697043601,-400.0,0.00024657,2]
[378050563,1754697043610,-156.740015,0.00024657,7]
[378050565,1754697043618,-252.953858,0.00024657,7]
[378050567,1754697043627,-400.0,0.00024657,2]
[378050569,1754697043636,-400.0,0.00024657,2]
[378050571,1754697043645,-400.0,0.00024657,2]
[378050573,1754697043655,-400.0,0.00024657,2]
[378050575,1754697043664,-151.0,0.00024657,7]
[378050577,1754697043673,-400.0,0.00024657,2]
[378050579,1754697043682,-400.0,0.00024657,2]
[378050581,1754697043691,-400.0,0.00024657,2]
[378050583,1754697043700,-400.0,0.00024657,2]
[378050585,1754697043709,-2026.08,0.00024657,2]
[378050586,1754697043720,-537.24,0.00024657,2]
[378050588,1754697043730,-400.0,0.00024657,2]
[378050591,1754697043739,-400.0,0.00024657,2]
[378050592,1754697043748,-151.0,0.00024657,7]
[378050595,1754697043758,-151.0,0.00024657,7]
[378050596,1754697043768,-4232.77944848,0.000247,2]
[378050598,1754697043777,-500.0,0.00024752,2]
[378050600,1754697043786,-500.0,0.00024752,2]
[378050602,1754697043796,-500.0,0.00024752,2]
[378050605,1754697043805,-500.0,0.00024773,2]
[378050606,1754697043814,-150.0,0.00024773,2]
[378050608,1754697043824,-151.0,0.000248,7]
[378050610,1754697043833,-258.889176,0.000248,7]
[378050612,1754697043842,-151.0,0.000248,7]
[378050614,1754697043852,-151.0,0.000248,7]
[378050617,1754697043864,-842.44706758,0.000248,3]
[378050618,1754697043874,-151.0,0.000248,7]
[378050619,1754697043883,-151.0,0.000248,7]
[378050620,1754697043892,-151.0,0.000248,7]
[378050621,1754697043902,-151.0,0.000248,7]
[378050622,1754697043911,-211.62674257,0.000248,3]
[378050623,1754697043921,-31159.9965734,0.000248,3]
[378050624,1754697043930,-151.0,0.000248,7]
[378050625,1754697043940,-151.0,0.000248,7]
[378050626,1754697043949,-200.0,0.000248,2]
[378050627,1754697043958,-200.0,0.000248,2]
[378050628,1754697043968,-200.0,0.000248,2]
[378050629,1754697043977,-200.0,0.000248,2]
[378050630,1754697043987,-200.0,0.000248,2]
[378050631,1754697043996,-200.0,0.000248,2]
[378050632,1754697044006,-200.0,0.000248,2]
[378050633,1754697044015,-81.48751073,0.000248,2]
[378050634,1754697044132,-118.51248927,0.000248,2]
[378050635,1754697044142,-200.0,0.000248,2]
[378050636,1754697044152,-138.62271679,0.000248,2]
[378050649,1754697045814,-1888.0,0.0001976,3]
[378050650,1754697045824,-3776.0,0.00022,3]
[378050651,1754697045834,-61.37728321,0.000248,2]
[378050652,1754697045844,-200.0,0.000248,2]
[378050653,1754697045854,-200.0,0.000248,2]
[378050654,1754697045866,-200.0,0.000248,2]
[378050655,1754697045875,-200.0,0.000248,2]
[378050656,1754697045884,-200.0,0.000248,2]
[378050657,1754697045894,-200.0,0.000248,2]
[378050658,1754697045905,-200.0,0.000248,2]
[378050659,1754697045915,-200.0,0.000248,2]
[378050660,1754697045924,-200.0,0.000248,2]
[378050661,1754697045938,-200.0,0.000248,2]
[378050662,1754697045948,-200.0,0.000248,2]
[378050663,1754697045958,-200.0,0.000248,2]
[378050664,1754697045967,-200.0,0.000248,2]
[378050665,1754697045976,-160.9340009,0.000248,2]
[378050666,1754697045988,-39.0659991,0.000248,2]
[378050667,1754697045998,-151.0,0.000248,7]
[378050668,1754697046007,-151.0,0.000248,7]
[378050669,1754697046017,-199.85543722,0.0002485,2]
[378050670,1754697046026,-169.37,0.00024874,2]
[378050671,1754697046035,-3360.0,0.00024899,2]
[378050672,1754697046045,-956.0,0.00024899,2]
[378050673,1754697046055,-810.0,0.00024899,2]
[378050674,1754697046064,-1176.50856368,0.00024899,2]
[378050675,1754697046079,-114.49143632,0.00024899,2]
[378050676,1754697046088,-370.461,0.00024899,2]
[378050677,1754697046097,-150.0,0.00024899,2]
[378050678,1754697046107,-409.72,0.00024931,2]
[378050679,1754697046117,-378.11,0.00024931,2]
[378050680,1754697046126,-542.24,0.00024931,2]
[378050681,1754697046135,-400.0,0.00024931,2]
[378050682,1754697046144,-2766.0,0.00024931,2]
[378050683,1754697046154,-400.0,0.00024931,2]
[378050684,1754697046164,-156.821769,0.00024931,2]
[378050685,1754697046173,-400.0,0.00024931,2]
[378050686,1754697046182,-412.81,0.00024931,2]
[378050687,1754697046191,-400.0,0.00024931,2]
[378050688,1754697046200,-400.0,0.00024931,2]
[378050689,1754697046209,-400.0,0.00024931,2]
[378050690,1754697046218,-2026.08,0.00024931,2]
[378050691,1754697046227,-400.0,0.00024931,2]
[378050692,1754697046240,-3292.0,0.00024931,2]
[378050693,1754697046249,-192.0,0.0002495,2]
[378050695,1754697046259,-500.0,0.00024961,2]
[378050696,1754697046268,-514.0,0.00025003,2]
[378050697,1754697046277,-157.46,0.00025067,2]
[378050698,1754697046287,-351.464,0.0002509,9]
[378050699,1754697046296,-151.0,0.00025121,7]
[378050700,1754697046305,-151.0,0.00025121,7]
[378050701,1754697046314,-500.28707117,0.00025164,2]
[378050702,1754697046323,-151.0,0.00025205,7]
[378050705,1754697046332,-409.72,0.00025205,2]
[378050706,1754697046342,-151.0,0.00025205,7]
[378050707,1754697046351,-294.99,0.00025205,2]
[378050708,1754697046360,-151.0,0.00025205,7]
[378050709,1754697046369,-151.0,0.00025205,7]
[378050710,1754697046378,-920.09430491,0.00025205,2]
[378050711,1754697046393,-573.26308838,0.0002026,3]
[378050712,1754697046405,-1314.73691162,0.0002026,3]
[378050713,1754697046414,-1845.90569509,0.00025205,2]
[378050714,1754697046423,-151.0,0.00025205,7]
[378050715,1754697046432,-230.442726,0.00025205,7]
[378050716,1754697046442,-510.65,0.00025205,2]
[378050717,1754697046451,-400.0,0.00025205,2]
[378050718,1754697046460,-151.0,0.00025205,7]
[378050719,1754697046470,-400.0,0.00025205,2]
[378050720,1754697046480,-151.0,0.00025205,7]
[378050721,1754697046489,-400.0,0.00025205,2]
[378050722,1754697046498,-400.0,0.00025205,2]
[378050723,1754697046508,-2026.08,0.00025205,2]
[378050724,1754697046517,-400.0,0.00025205,2]
[378050725,1754697046526,-151.0,0.00025205,7]
[378050726,1754697046535,-151.0,0.00025205,7]
[378050727,1754697046544,-1888.0,0.000253,3]
[378050728,1754697046553,-1135.27815901,0.000253,2]